fUST/lending_fUST_20240122
["ID","MTS","AMOUNT","RATE_DAILY","PERIOD"]
[312470014,1705913434803,-500.0,0.00030135,4]
[312470015,1705913434812,-500.0,0.00030135,4]
[312470016,1705913434821,-500.0,0.00030135,4]
[312470017,1705913434831,-500.0,0.00030135,4]
[312470018,1705913434840,-500.0,0.00030135,4]
[312470019,1705913434849,-500.0,0.00030135,4]
[312470020,1705913434859,-500.0,0.00030135,4]
[312470021,1705913434868,-500.0,0.00030135,4]
[312470022,1705913434877,-500.0,0.00030135,4]
[312470023,1705913434887,-500.0,0.00030135,4]
[312470024,1705913434896,-500.0,0.00030135,4]
[312470025,1705913434906,-500.0,0.00030135,4]
[312470026,1705913434915,-500.0,0.00030135,4]
[312470027,1705913434924,-500.0,0.00030135,4]
[312470028,1705913434933,-499.99999999,0.00030135,4]
[312470029,1705913434943,-500.0,0.00030135,4]
[312470030,1705913434952,-200.0,0.00030135,4]
[312470031,1705913434961,-500.0,0.00030135,4]
[312470032,1705913434970,-151.0,0.00030135,2]
[312470033,1705913434979,-286.470398,0.00030135,2]
[312470034,1705913434989,-286.470398,0.00030135,2]
[312470035,1705913434998,-340.375728,0.00030135,2]
[312470036,1705913435007,-340.375728,0.00030135,2]
[312470037,1705913435016,-643.688412,0.00030135,2]
[312470038,1705913435026,-643.688412,0.00030135,2]
[312470039,1705913435035,-643.688412,0.00030135,2]
[312470040,1705913435045,-643.688412,0.00030135,2]
[312470041,1705913435054,-10000.0,0.00030135,2]
[312470042,1705913435064,-10000.0,0.00030135,2]
[312470043,1705913435074,-10000.0,0.00030135,2]
[312470044,1705913435084,-10000.0,0.00030135,2]
[312470045,1705913435093,-10000.0,0.00030135,2]
[312470046,1705913435102,-10000.0,0.00030135,2]
[312470047,1705913435111,-10000.0,0.00030135,2]
[312470048,1705913435121,-10000.0,0.00030135,2]
[312470049,1705913435130,-10000.0,0.00030135,2]
[312470050,1705913435139,-10000.0,0.00030135,2]
[312470051,1705913435148,-405.0,0.00030135,2]
[312470052,1705913435158,-405.0,0.00030135,2]
[312470053,1705913435168,-405.0,0.00030135,2]
[312470054,1705913435177,-405.0,0.00030135,2]
[312470055,1705913435186,-151.0,0.00030136,2]
[312470056,1705913435195,-252.599152,0.00030136,2]
[312470057,1705913435205,-252.599152,0.00030136,2]
[312470058,1705913435216,-151.0,0.00030136,2]
[312470059,1705913435229,-151.0,0.00030136,2]
[312470060,1705913435241,-286.470398,0.00030136,2]
[312470061,1705913435254,-286.470398,0.00030136,2]
[312470062,1705913435267,-286.470398,0.00030136,2]
[312470063,1705913435279,-286.470398,0.00030136,2]
[312470064,1705913435289,-286.470398,0.00030136,2]
[312470065,1705913435300,-286.470398,0.00030136,2]
[312470066,1705913435313,-340.375728,0.00030136,2]
[312470067,1705913435327,-340.375728,0.00030136,2]
[312470068,1705913435340,-340.375728,0.00030136,2]
[312470069,1705913435354,-340.375728,0.00030136,2]
[312470070,1705913435368,-643.688412,0.00030136,2]
[312470071,1705913435380,-643.688412,0.00030136,2]
[312470072,1705913435392,-643.688412,0.00030136,2]
[312470073,1705913435405,-643.688412,0.00030136,2]
[312470074,1705913435416,-10000.0,0.00030136,2]
[312470075,1705913435430,-10000.0,0.00030136,2]
[312470076,1705913435442,-10000.0,0.00030136,2]
[312470077,1705913435453,-10000.0,0.00030136,2]
[312470078,1705913435466,-10000.0,0.00030136,2]
[312470079,1705913435477,-10000.0,0.00030136,2]
[312470080,1705913435489,-10000.0,0.00030136,2]
[312470081,1705913435501,-10000.0,0.00030136,2]
[312470082,1705913435514,-10000.0,0.00030136,2]
[312470083,1705913435525,-10000.0,0.00030136,2]
[312470084,1705913435535,-405.0,0.00030136,2]
[312470085,1705913435545,-405.0,0.00030136,2]
[312470086,1705913435559,-405.0,0.00030136,2]
[312470087,1705913435570,-405.0,0.00030136,2]
[312470088,1705913435582,-283.25593542,0.00030136,3]
[312470089,1705913435595,-41706.0444739,0.00030136,14]
[312470127,1705913438354,-189.449364,0.0003,2]
[312470128,1705913438366,-154.82968734,0.00030133,4]
[312470129,1705913438377,-113334.71471829,0.00030136,14]
[312470130,1705913438389,-195.34407417,0.00030136,4]
[312470131,1705913438400,-686.79918076,0.00030136,4]
[312470132,1705913438412,-1200.0,0.00030136,4]
[312470133,1705913438422,-157.894736,0.00030137,2]
[312470134,1705913438432,-684.56779977,0.00030137,2]
[312470135,1705913438442,-155.0,0.00030174,2]
[312470136,1705913438453,-286.470398,0.00030185,2]
[312470137,1705913438463,-286.470398,0.00030185,2]
[312470138,1705913438474,-340.375728,0.00030185,2]
[312470139,1705913438484,-340.375728,0.00030185,2]
[312470140,1705913438495,-643.688412,0.00030185,2]
[312470141,1705913438505,-643.688412,0.00030185,2]
[312470142,1705913438516,-10000.0,0.00030185,2]
[312470143,1705913438526,-10000.0,0.00030185,2]
[312470144,1705913438536,-10000.0,0.00030185,2]
[312470145,1705913438546,-10000.0,0.00030185,2]
[312470146,1705913438557,-10000.0,0.00030185,2]
[312470147,1705913438568,-405.0,0.00030185,2]
[312470148,1705913438578,-405.0,0.00030185,2]
[312470149,1705913438589,-91608.46482116,0.00030185,2]
[312470150,1705913438600,-576.0,0.000302,2]
[312470151,1705913438614,-153.48719041,0.00030287,7]
[312470152,1705913438625,-151.0,0.00030288,2]
[312470153,1705913438636,-163.42025058,0.00030325,5]
[312470154,1705913438647,-153.48719041,0.00030331,7]
[312470155,1705913438658,-1588.15392137,0.00030333,2]
[312470156,1705913438669,-152.22977517,0.00030343,7]
[312470157,1705913438679,-153.48719041,0.00030364,7]
[312470158,1705913438690,-309.42756595,0.00030443,4]
[312470159,1705913438700,-309.42756595,0.00030443,4]
[312470160,1705913438711,-306.23554596,0.00030445,2]
[312470161,1705913438722,-257.15702087,0.00030445,4]
[312470162,1705913438733,-383.73561703,0.00030445,4]
[312470163,1705913438743,-4721.06450288,0.00030445,3]
[312470164,1705913438754,-5000.0,0.00030491,7]
[312470165,1705913438764,-1500.0,0.000305,2]
[312470166,1705913438775,-151.36107663,0.00030525,7]
[312470167,1705913438785,-619.150641,0.00030528,2]
[312470168,1705913438796,-154.93802479,0.00030538,4]
[312470169,1705913438806,-256.59600227,0.00030545,4]
[312470170,1705913438817,-309.41209233,0.00030546,4]
[312470171,1705913438827,-16681.08367409,0.00030547,4]
[312470172,1705913438838,-620.00000003,0.00030561,2]
[312470173,1705913438849,-1000.0,0.00030624,2]
[312470174,1705913438860,-1000.0,0.00030646,2]
[312470175,1705913438871,-300.40206867,0.00030648,2]
[312470176,1705913438882,-1000.0,0.00030655,2]
[312470177,1705913438893,-1000.0,0.00030658,2]
[312470178,1705913438903,-151.36107663,0.00030716,7]
[312470179,1705913438916,-988.18234493,0.00030722,2]
[312470180,1705913438926,-1000.0,0.00030725,2]
[312470181,1705913438937,-155.824109,0.00030736,2]
[312470182,1705913438947,-1000.0,0.0003074,2]
[312470183,1705913438958,-157.894736,0.00030746,2]
[312470184,1705913438968,-1000.0,0.00030768,2]
[312470185,1705913438979,-1000.0,0.00030769,2]
[312470186,1705913438989,-1000.0,0.00030773,2]
[312470187,1705913438998,-151.0,0.00030799,2]
[312470188,1705913439008,-1444.17793599,0.000308,2]
[312470189,1705913439017,-200.0,0.000308,4]
[312470190,1705913439026,-1000.0,0.00030807,2]
[312470191,1705913439036,-1000.0,0.00030807,2]
[312470192,1705913439045,-286.470398,0.0003081,2]
[312470193,1705913439054,-286.470398,0.0003081,2]
[312470194,1705913439064,-340.375728,0.0003081,2]
[312470195,1705913439073,-340.375728,0.0003081,2]
[312470196,1705913439082,-643.688412,0.0003081,2]
[312470197,1705913439091,-145.61295318,0.0003081,2]
[312470199,1705913439328,-498.07545882,0.0003081,2]
[312470200,1705913439338,-1909.88423914,0.0003081,2]
[312470201,1705913439350,-8090.11576086,0.0003081,2]
[312470202,1705913439359,-10000.0,0.0003081,2]
[312470203,1705913439368,-8826.02376243,0.0003081,2]
[312470204,1705913439379,-523.39132363,0.0003081,2]
[312470460,1705913446466,-663.62770952,0.000226,2]
[312470461,1705913446477,-805.03572685,0.000226,2]
[312470462,1705913446487,-154.81422293,0.0002712,4]
[312470463,1705913446496,-977.81939146,0.0002712,2]
[312470464,1705913446505,-600.0,0.00029787,2]
[312470465,1705913446514,-189.449364,0.0003,2]
[312470466,1705913446523,-189.449364,0.00030037,2]
[312470468,1705913446532,-189.449364,0.00030037,2]
[312470470,1705913446541,-348.29930101,0.00030133,4]
[312470472,1705913446550,-172.3440855,0.00030133,4]
[312470473,1705913446560,-574.63018738,0.00030133,2]
[312470474,1705913446569,-545.95084271,0.00030133,4]
[312470476,1705913446579,-189.449364,0.00030134,2]
[312470478,1705913446587,-189.449364,0.00030134,2]
[312470479,1705913446596,-189.449364,0.00030135,2]
[312470480,1705913446605,-189.449364,0.00030135,2]
[312470481,1705913446615,-189.449364,0.00030136,2]
[312470482,1705913446626,-189.449364,0.00030136,2]
[312470483,1705913446635,-189.449364,0.00030136,2]
[312470484,1705913446645,-189.449364,0.00030136,2]
[312470485,1705913446654,-189.449364,0.00030136,2]
[312470486,1705913446663,-189.449364,0.00030136,2]
[312470487,1705913446674,-1542.64,0.00030175,3]
[312470488,1705913446683,-189.449364,0.00030185,2]
[312470489,1705913446692,-189.449364,0.00030185,2]
[312470490,1705913446702,-1000.0,0.00030709,2]
[312470491,1705913446711,-650.58491394,0.0003081,2]
[312470492,1705913446721,-1786.14086822,0.0003081,2]
[312470493,1705913446734,-1313.37229048,0.0003081,2]
[312470496,1705913528010,6233.0,0.000231,7]
[312470516,1705913792027,-1253.28010587,0.00043234,120]
[312470517,1705913792052,-500.0,0.00043234,120]
[312470518,1705913792076,-279.36291843,0.00043234,30]
[312470519,1705913792099,-525.17425985,0.00043234,120]
[312470520,1705913792122,-221181.89682192,0.00043234,120]
[312470521,1705913792146,-311.35321621,0.00043234,60]
[312470522,1705913792168,-402.81604667,0.00043234,30]
[312470523,1705913792191,-200.0,0.00043234,30]
[312470524,1705913800961,-1000.0,0.00031,31]
[312470525,1705913800986,-1000.0,0.00031,31]
[312470526,1705913801012,-1000.0,0.00032,32]
[312470527,1705913801039,-177.709093,0.00032877,41]
[312470528,1705913801062,-177.709093,0.00032877,80]
[312470529,1705913801085,-177.709093,0.00032877,119]
[312470530,1705913801110,-1000.0,0.00033,33]
[312470531,1705913801132,-1000.0,0.00033,33]
[312470532,1705913801156,-1000.0,0.00034,34]
[312470533,1705913801181,-1000.0,0.00035,35]
[312470534,1705913801328,-1000.0,0.00035,35]
[312470535,1705913801352,-10000.0,0.00035,30]
[312470536,1705913801377,-298.3441517,0.00035616,120]
[312470537,1705913801401,-1000.0,0.00036,36]
[312470538,1705913801426,-1000.0,0.00037,37]
[312470539,1705913801449,-1000.0,0.00037,37]
[312470540,1705913801474,-1500.0,0.00038,30]
[312470541,1705913801497,-1000.0,0.00038,38]
[312470542,1705913801522,-503.73356975,0.0003863,31]
[312470543,1705913801545,-500.0,0.0003863,31]
[312470544,1705913801568,-501.05837074,0.0003863,31]
[312470545,1705913801591,-502.968745,0.0003863,31]
[312470546,1705913801614,-500.0,0.0003863,31]
[312470547,1705913801636,-503.11091725,0.0003863,31]
[312470548,1705913801659,-503.25238646,0.0003863,31]
[312470549,1705913801682,-500.0,0.0003863,31]
[312470550,1705913801704,-200.0,0.0003863,31]
[312470551,1705913801726,-500.0,0.0003863,31]
[312470552,1705913801752,-500.0,0.0003863,31]
[312470553,1705913801774,-453.44015408,0.0003863,31]
[312470554,1705913801797,-500.0,0.0003863,31]
[312470555,1705913801820,-504.03088729,0.0003863,31]
[312470556,1705913801844,-500.0,0.0003863,31]
[312470557,1705913801867,-502.67830291,0.0003863,31]
[312470558,1705913801889,-500.0,0.0003863,30]
[312470559,1705913801912,-500.0,0.0003863,30]
[312470560,1705913801935,-500.0,0.0003863,30]
[312470561,1705913801958,-500.0,0.0003863,30]
[312470562,1705913801981,-347.71074427,0.0003863,30]
[312470563,1705913802005,-500.0,0.0003863,31]
[312470564,1705913802028,-500.89280866,0.0003863,31]
[312470565,1705913802052,-503.92517647,0.0003863,31]
[312470566,1705913802074,-500.0,0.0003863,31]
[312470567,1705913802098,-500.0,0.0003863,31]
[312470568,1705913802120,-500.0,0.0003863,31]
[312470569,1705913802143,-500.0,0.0003863,31]
[312470570,1705913802165,-500.0,0.0003863,31]
[312470571,1705913802187,-502.28962555,0.0003863,31]
[312470572,1705913802209,-1114.81,0.0003863,31]
[312470573,1705913802232,-500.0,0.0003863,31]
[312470574,1705913802255,-243.36415622,0.0003863,31]
[312470575,1705913802278,-500.0,0.0003863,31]
[312470576,1705913802301,-504.16741513,0.0003863,31]
[312470577,1705913802324,-500.0,0.0003863,31]
[312470578,1705913802347,-500.0,0.0003863,31]
[312470579,1705913802369,-500.0,0.0003863,31]
[312470580,1705913802392,-439.45148265,0.0003863,31]
[312470581,1705913802413,-494.17995334,0.0003863,31]
[312470582,1705913802435,-768.35,0.0003863,31]
[312470583,1705913802460,-500.0,0.0003863,31]
[312470584,1705913802484,-500.0,0.0003863,31]
[312470585,1705913802505,-500.0,0.0003863,31]
[312470586,1705913802528,-500.0,0.0003863,31]
[312470587,1705913802551,-510.32293522,0.0003863,31]
[312470588,1705913802574,-500.0,0.0003863,31]
[312470589,1705913802597,-500.0,0.0003863,31]
[312470590,1705913802620,-508.76926993,0.0003863,31]
[312470591,1705913802643,-500.0,0.0003863,31]
[312470592,1705913802666,-504.53791537,0.0003863,31]
[312470593,1705913802688,-500.0,0.0003863,31]
[312470594,1705913802712,-500.0,0.0003863,31]
[312470595,1705913802736,-500.0,0.0003863,31]
[312470596,1705913802760,-500.0,0.0003863,31]
[312470597,1705913802784,-640.07,0.0003863,31]
[312470598,1705913802807,-873.08,0.0003863,31]
[312470599,1705913802831,-500.0,0.0003863,31]
[312470600,1705913802855,-529.18,0.0003863,31]
[312470601,1705913802879,-500.0,0.0003863,31]
[312470602,1705913802904,-500.0,0.0003863,31]
[312470603,1705913802930,-500.0,0.0003863,31]
[312470604,1705913802955,-503.99545693,0.0003863,31]
[312470605,1705913802978,-500.0,0.0003863,31]
[312470606,1705913803001,-501.77657072,0.0003863,31]
[312470607,1705913803024,-500.0,0.0003863,31]
[312470608,1705913803047,-501.63447845,0.0003863,31]
[312470609,1705913803070,-500.0,0.0003863,31]
[312470610,1705913803092,-1047.38,0.0003863,31]
[312470611,1705913803115,-500.0,0.0003863,31]
[312470612,1705913803138,-405.26523082,0.0003863,31]
[312470613,1705913803160,-500.0,0.0003863,31]
[312470614,1705913803183,-500.0,0.0003863,31]
[312470615,1705913803206,-596.94099766,0.0003863,31]
[312470616,1705913803230,-500.0,0.0003863,31]
[312470617,1705913803254,-500.0,0.0003863,31]
[312470618,1705913803277,-504.68488454,0.0003863,31]
[312470619,1705913803301,-500.0,0.0003863,31]
[312470620,1705913803325,-500.0,0.0003863,31]
[312470621,1705913803348,-500.0,0.0003863,31]
[312470622,1705913803372,-501.93585568,0.0003863,31]
[312470623,1705913803395,-500.0,0.0003863,31]
[312470624,1705913803418,-503.06191504,0.0003863,31]
[312470625,1705913803442,-500.0,0.0003863,31]
[312470626,1705913803467,-500.0,0.0003863,31]
[312470627,1705913803492,-564.89,0.0003863,31]
[312470628,1705913803514,-500.0,0.0003863,31]
[312470629,1705913803538,-504.41821264,0.0003863,31]
[312470630,1705913803563,-1337.29,0.0003863,31]
[312470631,1705913803587,-502.03211732,0.0003863,31]
[312470632,1705913803611,-500.0,0.0003863,31]
[312470633,1705913803636,-500.0,0.0003863,31]
[312470634,1705913803661,-500.0,0.0003863,31]
[312470635,1705913803691,-500.0,0.0003863,31]
[312470636,1705913803716,-497.91391953,0.0003863,31]
[312470637,1705913803742,-500.0,0.0003863,31]
[312470638,1705913803880,-500.0,0.0003863,31]
[312470639,1705913803907,-500.0,0.0003863,31]
[312470640,1705913803932,-502.20183492,0.0003863,31]
[312470641,1705913803957,-500.0,0.0003863,31]
[312470642,1705913803984,-500.0,0.0003863,31]
[312470643,1705913804009,-500.0,0.0003863,31]
[312470644,1705913804033,-500.0,0.0003863,31]
[312470645,1705913804058,-500.0,0.0003863,31]
[312470646,1705913804083,-501.5374226,0.0003863,31]
[312470647,1705913804108,-501.18123835,0.0003863,31]
[312470648,1705913804132,-500.0,0.0003863,31]
[312470649,1705913804157,-503.31657388,0.0003863,31]
[312470650,1705913804181,-500.0,0.0003863,31]
[312470651,1705913804204,-500.0,0.0003863,31]
[312470652,1705913804229,-500.0,0.0003863,31]
[312470653,1705913804254,-458.52586913,0.0003863,31]
[312470654,1705913804280,-505.35438239,0.0003863,31]
[312470655,1705913804305,-500.0,0.0003863,31]
[312470656,1705913804329,-500.0,0.0003863,31]
[312470657,1705913804353,-1126.09,0.0003863,31]
[312470658,1705913804379,-2255.18,0.0003863,31]
[312470659,1705913804404,-502.03435107,0.0003863,31]
[312470660,1705913804429,-500.0,0.0003863,31]
[312470661,1705913804456,-702.06,0.0003863,31]
[312470662,1705913804482,-702.06,0.0003863,31]
[312470663,1705913804507,-702.06,0.0003863,31]
[312470664,1705913804531,-702.06,0.0003863,31]
[312470665,1705913804556,-702.06,0.0003863,31]
[312470666,1705913804580,-702.06,0.0003863,31]
[312470667,1705913804603,-702.06,0.0003863,31]
[312470668,1705913804627,-500.0,0.0003863,31]
[312470669,1705913804651,-702.06,0.0003863,31]
[312470670,1705913804675,-702.06,0.0003863,31]
[312470671,1705913804699,-702.06,0.0003863,31]
[312470672,1705913804724,-702.06,0.0003863,31]
[312470673,1705913804749,-702.06,0.0003863,31]
[312470674,1705913804773,-702.06,0.0003863,31]
[312470675,1705913804798,-702.06,0.0003863,31]
[312470676,1705913804823,-702.06,0.0003863,31]
[312470677,1705913804849,-702.06,0.0003863,31]
[312470678,1705913804874,-702.06,0.0003863,31]
[312470679,1705913804899,-702.06,0.0003863,31]
[312470680,1705913804924,-702.06,0.0003863,31]
[312470681,1705913804948,-702.06,0.0003863,31]
[312470682,1705913804974,-702.06,0.0003863,31]
[312470683,1705913804998,-702.06,0.0003863,31]
[312470684,1705913805023,-702.06,0.0003863,31]
[312470685,1705913805047,-702.13099755,0.0003863,31]
[312470686,1705913805071,-502.36758433,0.0003863,31]
[312470687,1705913805096,-500.0,0.0003863,31]
[312470688,1705913805121,-500.0,0.0003863,31]
[312470689,1705913805146,-522.79162472,0.0003863,31]
[312470690,1705913805171,-500.0,0.0003863,31]
[312470691,1705913805197,-662.16,0.0003863,31]
[312470692,1705913805221,-505.46110484,0.0003863,31]
[312470693,1705913805246,-500.0,0.0003863,31]
[312470694,1705913805271,-500.0,0.0003863,31]
[312470695,1705913805296,-500.0,0.0003863,31]
[312470696,1705913805320,-1014.23,0.0003863,31]
[312470697,1705913805344,-500.0,0.0003863,31]
[312470698,1705913805368,-501.89828724,0.0003863,31]
[312470699,1705913805390,-502.48143469,0.0003863,31]
[312470700,1705913805414,-502.07001464,0.0003863,31]
[312470701,1705913805438,-500.0,0.0003863,31]
[312470702,1705913805462,-1114.79,0.0003863,31]
[312470703,1705913805488,-500.0,0.0003863,31]
[312470704,1705913805514,-520.05303069,0.0003863,31]
[312470705,1705913805538,-500.0,0.0003863,31]
[312470706,1705913805561,-500.0,0.0003863,31]
[312470707,1705913805584,-2330.07,0.0003863,31]
[312470708,1705913805607,-500.0,0.0003863,31]
[312470709,1705913805631,-236.9533294,0.0003863,31]
[312470710,1705913805655,-500.0,0.0003863,31]
[312470711,1705913805677,-500.0,0.0003863,31]
[312470712,1705913805701,-6634.5,0.0003863,31]
[312470713,1705913805726,-949.36,0.0003863,31]
[312470714,1705913805751,-1962.09,0.0003863,31]
[312470715,1705913805776,-500.0,0.0003863,31]
[312470716,1705913805800,-1340.33,0.0003863,31]
[312470717,1705913805824,-597.14788468,0.0003863,31]
[312470718,1705913805849,-502.62422525,0.0003863,31]
[312470719,1705913805873,-500.0,0.0003863,31]
[312470720,1705913805898,-2749.12,0.0003863,31]
[312470721,1705913805923,-500.0,0.0003863,31]
[312470722,1705913805947,-500.0,0.0003863,31]
[312470723,1705913805971,-500.0,0.0003863,31]
[312470724,1705913805996,-6849.76,0.0003863,31]
[312470725,1705913806021,-500.0,0.0003863,31]
[312470726,1705913806045,-1551.82,0.0003863,31]
[312470727,1705913806068,-500.0,0.0003863,31]
[312470728,1705913806091,-500.0,0.0003863,31]
[312470729,1705913806114,-500.0,0.0003863,31]
[312470730,1705913806139,-5781.2,0.0003863,31]
[312470731,1705913806164,-500.0,0.0003863,31]
[312470732,1705913806188,-500.0,0.0003863,31]
[312470733,1705913806212,-2019.03,0.0003863,31]
[312470734,1705913806237,-6915.52,0.0003863,31]
[312470735,1705913806261,-501.90183662,0.0003863,31]
[312470736,1705913806285,-502.23060497,0.0003863,31]
[312470737,1705913806308,-500.0,0.0003863,31]
[312470738,1705913806333,-503.11213762,0.0003863,31]
[312470739,1705913806356,-2081.27,0.0003863,31]
[312470740,1705913806380,-539.18,0.0003863,31]
[312470741,1705913806404,-1825.15,0.0003863,31]
[312470742,1705913806428,-741.59,0.0003863,31]
[312470743,1705913806566,-500.0,0.0003863,31]
[312470744,1705913806592,-500.0582979,0.0003863,31]
[312470745,1705913806618,-500.0,0.0003863,31]
[312470746,1705913806642,-500.0,0.0003863,31]
[312470747,1705913806667,-500.0,0.0003863,31]
[312470748,1705913806691,-504.50848364,0.0003863,31]
[312470749,1705913806715,-493.88270056,0.0003863,31]
[312470750,1705913806744,-1295.04,0.0003863,31]
[312470751,1705913806767,-500.0,0.0003863,31]
[312470752,1705913806792,-500.0,0.0003863,31]
[312470753,1705913806817,-500.0,0.0003863,31]
[312470754,1705913806842,-500.0,0.0003863,31]
[312470755,1705913806865,-500.0,0.0003863,31]
[312470756,1705913806889,-464.15747196,0.0003863,31]
[312470757,1705913806912,-500.0,0.0003863,31]
[312470758,1705913806936,-1269.8,0.0003863,31]
[312470759,1705913806959,-500.0,0.0003863,31]
[312470760,1705913806983,-500.0,0.0003863,31]
[312470761,1705913807006,-500.0,0.0003863,31]
[312470762,1705913807030,-500.0,0.0003863,31]
[312470763,1705913807053,-500.0,0.0003863,31]
[312470764,1705913807078,-1732.72,0.0003863,31]
[312470765,1705913807101,-150.0,0.0003863,31]
[312470766,1705913807126,-502.50573028,0.0003863,31]
[312470767,1705913807150,-500.0,0.0003863,31]
[312470768,1705913807172,-501.98682253,0.0003863,31]
[312470769,1705913807197,-500.0,0.0003863,31]
[312470770,1705913807221,-500.0,0.0003863,31]
[312470771,1705913807247,-1393.86,0.0003863,31]
[312470772,1705913807271,-297.79732766,0.0003863,31]
[312470773,1705913807294,-500.0,0.0003863,31]
[312470774,1705913807316,-463.16600935,0.0003863,31]
[312470775,1705913807339,-1409.98,0.0003863,31]
[312470776,1705913807362,-500.0,0.0003863,31]
[312470777,1705913807386,-571.3,0.0003863,31]
[312470778,1705913807409,-500.0,0.0003863,31]
[312470779,1705913807432,-500.0,0.0003863,31]
[312470780,1705913807457,-500.0,0.0003863,31]
[312470781,1705913807482,-500.0,0.0003863,31]
[312470782,1705913807505,-500.0,0.0003863,31]
[312470783,1705913807528,-503.962728,0.0003863,31]
[312470784,1705913807551,-500.0,0.0003863,31]
[312470785,1705913807573,-500.0,0.0003863,31]
[312470786,1705913807597,-500.0,0.0003863,31]
[312470787,1705913807620,-567.11,0.0003863,31]
[312470788,1705913807644,-638.47,0.0003863,31]
[312470789,1705913807668,-2018.02,0.0003863,31]
[312470790,1705913807692,-505.65976221,0.0003863,31]
[312470791,1705913807715,-500.0,0.0003863,31]
[312470792,1705913807739,-581.8725791,0.0003863,31]
[312470793,1705913807764,-500.0,0.0003863,31]
[312470794,1705913807788,-2040.77,0.0003863,31]
[312470795,1705913807812,-500.0,0.0003863,31]
[312470796,1705913807837,-500.0,0.0003863,31]
[312470797,1705913807865,-4772.99,0.0003863,31]
[312470798,1705913807889,-501.18089107,0.0003863,31]
[312470799,1705913807914,-501.18989366,0.0003863,31]
[312470800,1705913807938,-500.0,0.0003863,31]
[312470801,1705913807962,-1774.13,0.0003863,31]
[312470802,1705913807986,-500.0,0.0003863,31]
[312470803,1705913808010,-505.03493219,0.0003863,31]
[312470804,1705913808033,-500.0,0.0003863,31]
[312470805,1705913808056,-14310.79,0.0003863,31]
[312470806,1705913808080,-604.97,0.0003863,31]
[312470807,1705913808103,-511.82406535,0.0003863,31]
[312470808,1705913808125,-507.4500376,0.0003863,31]
[312470809,1705913808150,-229.2050491,0.000389,120]
[312470810,1705913808173,-500.0,0.00038904,31]
[312470811,1705913808196,-503.72810246,0.00038904,31]
[312470812,1705913808218,-500.0,0.00038904,31]
[312470813,1705913808242,-253.78247353,0.00038904,31]
[312470814,1705913808265,-500.0,0.00038904,31]
[312470815,1705913808287,-500.0,0.00038904,31]
[312470816,1705913808310,-500.0,0.00038904,31]
[312470817,1705913808333,-500.0,0.00038904,31]
[312470818,1705913808357,-501.28879918,0.00038904,31]
[312470819,1705913808380,-500.0,0.00038904,31]
[312470820,1705913808403,-500.0,0.00038904,31]
[312470821,1705913808426,-500.0,0.00038904,31]
[312470822,1705913808449,-500.0,0.00038904,31]
[312470823,1705913808472,-500.0,0.00038904,31]
[312470824,1705913808496,-1114.81,0.00038904,31]
[312470825,1705913808520,-333.64652128,0.00038904,31]
[312470826,1705913808543,-500.99033115,0.00038904,31]
[312470827,1705913808566,-503.71939962,0.00038904,31]
[312470828,1705913808588,-500.0,0.00038904,31]
[312470829,1705913808611,-500.0,0.00038904,31]
[312470830,1705913808633,-768.35,0.00038904,31]
[312470831,1705913808656,-500.0,0.00038904,31]
[312470832,1705913808678,-496.31125397,0.00038904,31]